Workbook

Sheet Instructions
A1: INSTRUCTIONS FOR ENTERING DATA INTO THE THEORY WORKSHEET | H1: Version 1.1
A3: 1 | B3: Only enter data into the blue cells. Red cells have formulae
A4: 2 | B4: Enter weather data at the top then push the Wavelength button.
A5: 3 | B5: Change any other data then press the optimise button at the bottom
A6: 4 | B6: Check yellow coloured cells to confirm they are all indicated as 'OK'
A7: 5 | B7: Adjust parameters until all yellow cells are indicated as 'OK'
A9: Notes
A10: a. | B10: If you would like to review the spreadsheet in greater detai, the password is (Pliosaur)
A11: b. | B11: If you have any suggestions/corrections/improvements please send a note to (enquiries@pliosaurenergy.com).
B14: Each gear (turbine) can be configured separately (wave/tide ratio) but rpm is set by tidal flow
B15: Turbines are linked so that flow can move between gears, should this be required.
B16: Turbine assembly can ballast up/down to optimise wave overtopping
B17: Flow can move front to back for fluid storage (fluid transfer via ducts between gears)
B18: Waves energy recovery can be 180 deg opposite to tidal flow direction (fluid tranfer system)
B32: Figure 1 - Turbine assembly with 7 gears (turbines)
A34: Many thanks
A36: Pliosaur Energy

Sheet Theory
A1: WEATHER DATA | B1: Bretschneider wave theory
A2: Bretschneider shallow water method
B3: Mid | C3: Low | D3: High
A4: Wind velocity | B4: 60 | C4: 30 | D4: 80 | E4: km/h | F4: =C4*0.621 -> 18.63 | G4: mph
A5: Wind velocity (U) | B5: =B4*1000/3600 -> 16.66666667 | C5: =C4*1000/3600 -> 8.333333333 | D5: 22.22222222 | E5: m/s
A6: Water depth high tide (d) | B6: 40 | C6: 40 | D6: 40 | E6: m
A7: Fetch = Distance wind travels unobstructed | B7: 1000 | C7: 1000 | D7: 1000 | E7: km | F7: (Y-direction)
A8: Fetch (F) | B8: =B7*1000 -> 1000000 | C8: =C7*1000 -> 1000000 | D8: 1000000 | E8: m
A9: Gravity | B9: 9.81 | C9: =B9 -> 9.81 | D9: =B9 -> 9.81 | E9: m/s^2
A10: Fx=g*F/(U^2) | B10: =(B9*B8)/(B5^2) -> 35316 | C10: =(C9*C8)/(C5^2) -> 141264 | D10: 19865.25
A11: Hx=g*d/(U^2) | B11: =(B9*B6)/(B5^2) -> 1.41264 | C11: =(C9*C6)/(C5^2) -> 5.65056 | D11: 0.79461
A12: p1=tanh(0.53*(Hx^0.75)) | B12: =TANH( 0.53*($B$11^0.75)) -> 0.5958909279 | C12: =TANH( 0.53*($C$11^0.75)) -> 0.9597259289 | D12: =TANH( 0.53*($D$11^0.75)) -> 0.418653343
A13: p2=tanh(0.833*(Hx^0.375)) | B13: =TANH( 0.833*($B$11^0.375)) -> 0.7389738691 | C13: =TANH( 0.833*($C$11^0.375)) -> 0.9208670287 | D13: =TANH( 0.833*($D$11^0.375)) -> 0.643539785
A14: Wave height (H) | B14: =0.283*(B5^2/B9)*B12*(TANH(0.0125*(B10^0.42)/B12)) -> 4.470021983 | C14: =0.283*(C5^2/C9)*C12*(TANH(0.0125*(C10^0.42)/C12)) -> 1.837812075 | D14: 5.706461132 | E14: m | F14: Note this is a Fetch limited calculation | I14: 1.6.5 | J14: equation ref
A15: Wave period (T) | B15: =7.54*(B5/B9)*B13* TANH(0.077*(B10^0.25)/B13) -> 8.437703311 | C15: =7.54*(C5/C9)*C13*TANH(0.077*(C10^0.25)/C13) -> 5.454514344 | D15: 9.779340564 | E15: sec | F15: Note this is a Fetch limited calculation | I15: 1.6.6 | J15: equation ref
A16: Storm duration for Fetch limitation | B16: =68.8*(B10^0.67)*B5/B9 -> 130289.402 | C16: =68.8*(C10^0.67)*C5/C9 -> 164914.6698 | D16: 118148.9647 | E16: mins
B17: =B16/60/24 -> 90.47875142 | C17: =C16/60/24 -> 114.5240762 | D17: 82.04789217 | E17: days
A19: Linearized theory of wave motion | B19: Guide to Wave analysis and forecasting
A20: L=g*T^2/2PI*Tanh(2*PI*d/L)
A21: Wave length (L) manual iteration | B21: 108.9723854 | C21: 46.44981335 | D21: 141.081628 | E21: m
B22: =B9*B15^2/(2*PI())*TANH(2*PI()*B6/B21) -> 108.9723857 | C22: =C9*C15^2/(2*PI())*TANH(2*PI()*C6/C21) -> 46.4498133 | D22: =D9*D15^2/(2*PI())*TANH(2*PI()*D6/D21) -> 141.081705 | E22: m
A23: Iteration difference | B23: =wave_length_mid-B22 -> -2.753674266e-07 | C23: =wave_length_low-C22 -> 5.00410664e-08 | D23: =wave_length_high-D22 -> -7.704535534e-05 | E23: m
B24: =IF(INT(B22)=INT(B21),"OK","ITERATE") -> OK | C24: =IF(INT(C22)=INT(C21),"OK","ITERATE") -> OK | D24: =IF(INT(D22)=INT(D21),"OK","ITERATE") -> OK
A26: Wave velocity(C)= L/T | B26: =B22/B15 -> 12.91493451 | C26: =C22/C15 -> 8.515847677 | D26: =D22/D15 -> 14.42650495 | E26: m/s
A27: Wave number (K)=2PI/L | B27: =2*PI()/B22 -> 0.05765850924 | C27: =2*PI()/C22 -> 0.1352682575 | D27: =2*PI()/D22 -> 0.04453579084 | E27: m-1
A28: Wave angular frequency (w)=2PI/T | B28: =2*PI()/B15 -> 0.7446558709 | C28: =2*PI()/C15 -> 1.151923877 | D28: =2*PI()/D15 -> 0.642495807 | E28: sec-1
A29: Wave amplitude (a)=H/2 | B29: =B14/2 -> 2.235010991 | C29: =C14/2 -> 0.9189060376 | D29: =D14/2 -> 2.853230566 | E29: m
A31: Tidal Flow Rate | B31: 2 | C31: 1 | D31: 3 | E31: m/s
A32: Fluid density | B32: 1025 | C32: =B32 -> 1025 | D32: =B32 -> 1025 | E32: kg/m3
A34: OVERTOPPING VOLUME | B34: Wave overtopping of marine structures (WOMS) - J.P. Kofoed 2002
B35: Wave run-up and overtopping (WRO) - J.W.Van der Meer 1995
A36: Wave direction angle from perpendicular (beta) | B36: 0 | C36: 0 | D36: 0 | E36: degrees
A37: Berm correction factor (Vb) (not present) | B37: 1 | C37: 1 | D37: 1 | F37: WOMS text under eq 2.1
A38: Slope roughness/impermeable correction factor (Vr) (steel, smooth = 1) | B38: 1 | C38: 1 | D38: 1 | F38: WOMS text under eq 2.1 (Vf in WRO)
A39: Vertical wall top o fslope correction factor (Vv) (not present=1) | B39: 1 | C39: 1 | D39: 1 | F39: WRO paragraph 4.5
A40: Wave angle correction factor (Vbeta) | B40: =1-(0.0033*B36) -> 1 | C40: =1-(0.0033*C36) -> 1 | D40: =1-(0.0033*D36) -> 1 | F40: WRO eq 14
A41: Ballasting height above datum | B41: 0.3441674096 | C41: -0.1613662081 | D41: 0.4805652498 | E41: m | F41: ENTER DATA HERE IF MACRO FAILS!
A42: Crest freeboard (Rc) | B42: 0.75 | C42: =B42 -> 0.75 | D42: =B42 -> 0.75 | E42: m
A43: Actual Model Crest Freeboard | B43: =B42+B41 -> 1.09416741 | C43: =C42+Ballasting_Low -> 0.5886337919 | D43: =D42+Ballasting_High -> 1.23056525 | E43: m
A44: Water depth (D) | B44: =B6 -> 40 | C44: =C6 -> 40 | D44: =D6 -> 40 | E44: m
A45: Turbine draught (Dr) | B45: =2.55-Ballasting_Mid -> 2.20583259 | C45: =2.55-Ballasting_Low -> 2.711366208 | D45: =2.55-Ballasting_High -> 2.06943475 | E45: m | F45: dist. leading edge below surface
A46: Significant wave height (Hs) | B46: =B14 -> 4.470021983 | C46: =C14 -> 1.837812075 | D46: =D14 -> 5.706461132 | E46: m
A47: Wave length | B47: =wave_length_mid -> 108.9723854 | C47: =wave_length_low -> 46.44981335 | D47: =wave_length_high -> 141.081628 | E47: m
A48: Gravity | B48: =B9 -> 9.81 | C48: =C9 -> 9.81 | D48: =D9 -> 9.81 | E48: m/s^2
A49: Wave number (Kp) | B49: =2*PI()/B47 -> 0.05765850938 | C49: =2*PI()/C47 -> 0.1352682574 | D49: =2*PI()/D47 -> 0.04453581516 | E49: m-1 | F49: WOMS page vii
A50: Coeff for draught (k) | B50: 0.4 | C50: 0.4 | D50: 0.4 | E50: m-1 | F50: WOMS just below eq 3.4
A51: Slope angle (Alpha) | B51: 45 | C51: =B51 -> 45 | D51: =B51 -> 45 | E51: degrees
A52: Optimal slope angle (Alpha m) | B52: 30 | C52: 30 | D52: 30 | E52: degrees | F52: WOMS paragraph 3.5.1
A53: Fitting coefficient (Beta) | B53: 3 | C53: 3 | D53: 3 | F53: WOMS paragraph 3.5.1
A54: Lambda s | B54: =IF(B43<0.75,0.4*SIN(2*PI()*B43/3)+0.6,1) -> 1 | C54: =IF(C43<0.75,0.4*SIN(2*PI()*C43/3)+0.6,1) -> 0.9773725973 | D54: =IF(D43<0.75,0.4*SIN(2*PI()*D43/3)+0.6,1) -> 1 | F54: WOMS eq 3.6
A55: Lambda dr | B55: =1 - (B50* (SINH(2*B49*B44*(1-(B45/B44))) + (2*B49*B44*(1-(B45/B44)))) / (SINH(2*B49*B44)+(2*B49*B44))) -> 0.6841705726 | C55: =1 - (C50* (SINH(2*C49*C44*(1-(C45/C44))) + (2*C49*C44*(1-(C45/C44)))) / (SINH(2*C49*C44)+(2*C49*C44))) -> 0.8078363281 | D55: =1 - (D50* (SINH(2*D49*D44*(1-(D45/D44))) + (2*D49*D44*(1-(D45/D44)))) / (SINH(2*D49*D44)+(2*D49*D44))) -> 0.6595885523 | F55: WOMS eq 3.4
A56: Lambda (alpha) | B56: =COS(RADIANS(B51-B52))^B53 -> 0.901221065 | C56: =COS(RADIANS(C51-C52))^C53 -> 0.901221065 | D56: =COS(RADIANS(D51-D52))^D53 -> 0.901221065 | F56: WOMS eq 3.3
A57: Lambda m, profile correction (CC01) | B57: 1.18 | C57: =B57 -> 1.18 | D57: =B57 -> 1.18 | F57: WOMS page 59
A58: Average wave overtopping discharge | B58: =B57* B54*B55*B56*((B48*B46^3)^0.5) * 0.2*EXP(-2.6*B43/B46*(1/B37/B38/B39/B40)) -> 2.279348366 | C58: =C57* C54*C55*C56*((C48*C46^3)^0.5) * 0.2*EXP(-2.6*C43/C46*(1/C37/C38/C39/C40)) -> 0.5698387406 | D58: =D57* D54*D55*D56*((D48*D46^3)^0.5) * 0.2*EXP(-2.6*D43/D46*(1/D37/D38/D39/D40)) -> 3.419032437 | E58: m3/s/m | F58: WOMS eq 3.10
A59: Turbine width | B59: 20 | C59: =B59 -> 20 | D59: =B59 -> 20 | E59: m
A60: Pontoon width | B60: 2.5 | C60: =B60 -> 2.5 | D60: =B60 -> 2.5
A61: Average wave overtopping discharge | B61: =B58*(B59+(2*B60)) -> 56.98370916 | C61: =C58*(C59+(2*C60)) -> 14.24596852 | D61: 85.47581093 | E61: m3/s
A62: Turbine diameter | B62: 16 | C62: =B62 -> 16 | D62: =B62 -> 16 | E62: m
A63: Core axle diameter | B63: 2 | C63: =B63 -> 2 | D63: =B63 -> 2 | E63: m
A64: Number blades | B64: 18 | C64: =B64 -> 18 | D64: =B64 -> 18
A65: Blade angle | B65: =360/B64 -> 20 | C65: =360/C64 -> 20 | D65: 20 | E65: degree
A66: Blade width | B66: 0.15 | C66: =B66 -> 0.15 | D66: =B66 -> 0.15 | E66: m
A67: Blade displacement/ revolution | B67: =(((PI()*B62^2/4)-(PI()*B63^2/4)) *B59) - (((B62-B63)/2)*B66*B59*B64) -> 3580.406744 | C67: =B67 -> 3580.406744 | D67: =B67 -> 3580.406744 | E67: m3/rev
A69: SOLE TIDAL POWER (UNCORRECTED, WAVE FLOW DISPLACES TIDAL FLOW)
A70: Velocity pressure | B70: =0.5*B32*B31^2 -> 2050 | C70: =0.5*C32*C31^2 -> 512.5 | D70: =0.5*D32*D31^2 -> 4612.5 | E70: Pa (N/m^2)
A71: Blade length | B71: =(B62-B63)/2 -> 7 | C71: =(C62-C63)/2 -> 7 | D71: =(D62-D63)/2 -> 7 | E71: m
A72: Blade area | B72: =B71*B59 -> 140 | C72: =C71*C59 -> 140 | D72: =D71*D59 -> 140 | E72: m^2
A73: Betz limit | B73: 0.57 | C73: =B73 -> 0.57 | D73: =B73 -> 0.57 | F73: Maximum efficiency possible
A74: Energy conversion losses | B74: 0.05 | C74: =B74 -> 0.05 | D74: =B74 -> 0.05
A75: Calculated efficiency | B75: =B73-B89 -> 0.5271428571 | C75: =C73-C89 -> 0.5271428571 | D75: =D73-D89 -> 0.5271428571
A76: Torque | B76: =B70*B72*((B62/2)-(B71/2)) -> 1291500 | C76: =C70*C72*((C62/2)-(C71/2)) -> 322875 | D76: =D70*D72*((D62/2)-(D71/2)) -> 2905875 | E76: Nm
A77: TSR (tip speed ratio) | B77: 0.8 | C77: =B77 -> 0.8 | D77: =B77 -> 0.8 | F77: HYLOW project output (0.8=optimum)
A78: Blade angular velocity | B78: =B31*B77 -> 1.6 | C78: =C31*C77 -> 0.8 | D78: =D31*D77 -> 2.4 | E78: m/s
A79: Rotor speed | B79: =B78/(PI()*B62)*60 -> 1.909859317 | C79: =C78/(PI()*C62)*60 -> 0.9549296586 | D79: =D78/(PI()*D62)*60 -> 2.864788976 | E79: rpm
A80: Predicted Power | B80: =B76*B79/9.664/1000000 -> 0.2552341999 | C80: =C76*C79/9.664/1000000 -> 0.03190427499 | D80: =D76*D79/9.664/1000000 -> 0.8614154247 | E80: MW
A81: Available tidal power | B81: =0.5*B32*B72*B31^3/1000000 -> 0.574 | C81: =0.5*C32*C72*C31^3/1000000 -> 0.07175 | D81: =0.5*D32*D72*D31^3/1000000 -> 1.93725 | E81: MW
A82: Efficiency (TSR derived) | B82: =B80/B81 -> 0.4446588849 | C82: =C80/C81 -> 0.4446588849 | D82: =D80/D81 -> 0.4446588849 | F82: HYLOW research paper 40%
B83: =IF(B75>B82,"OK","CHECK") -> OK | C83: =IF(C75>C82,"OK","CHECK") -> OK | D83: =IF(D75>D82,"OK","CHECK") -> OK
A84: FISH GAP
A85: Fish Gap | B85: 0.3 | C85: =B85 -> 0.3 | D85: =B85 -> 0.3 | E85: m
A86: Velocity head | B86: =B31^2/(2*B9) -> 0.2038735984 | C86: =C31^2/(2*C9) -> 0.05096839959 | D86: =D31^2/(2*D9) -> 0.4587155963 | E86: m
A87: Flow rate | B87: =0.61*B85*B59*(2*B9*B86)^0.5 -> 7.32 | C87: =0.61*C85*C59*(2*C9*C86)^0.5 -> 3.66 | D87: =0.61*D85*D59*(2*D9*D86)^0.5 -> 10.98 | E87: m^3/s
A88: Duct Flow rate | B88: =0.61*(B71*B59)*(2*B9*B86)^0.5 -> 170.8 | C88: =0.61*(C71*C59)*(2*C9*C86)^0.5 -> 85.4 | D88: =0.61*(D71*D59)*(2*D9*D86)^0.5 -> 256.2 | E88: m^3/s
A89: Efficiency loss | B89: =B87/B88 -> 0.04285714286 | C89: =C87/C88 -> 0.04285714286 | D89: =D87/D88 -> 0.04285714286
A91: WAVE TIDAL SYNCHRONISATION
A92: Tidal Blade displacement | B92: =B79/60*B67 -> 113.9678863 | C92: =C79/60*C67 -> 56.98394315 | D92: =D79/60*D67 -> 170.9518295 | E92: m3/sec
A93: Number wave flow paths/gear | B93: 4 | C93: =B93 -> 4 | D93: =B93 -> 4
A94: Rotor speed | B94: =B79 -> 1.909859317 | C94: =C79 -> 0.9549296586 | D94: =D79 -> 2.864788976 | E94: rpm
A95: Gear width (Turbine section) | B95: 5 | C95: =B95 -> 5 | D95: =B95 -> 5 | E95: m
A96: Gear width decimal check | B96: =IF(OR((ROUND(B99,0)-B99)<-0.05,(ROUND(B99,0)-B99)>0.05),"CHECK","OK") -> OK | C96: =IF(OR((ROUND(C99,0)-C99)<-0.05,(ROUND(C99,0)-C99)>0.05),"CHECK","OK") -> OK | D96: OK
A97: Optimal overtopping flowrate/wave flow path | B97: =B94/60*B67*B95/B59 -> 28.49197158 | C97: =C94/60*C67*C95/C59 -> 14.24598579 | D97: =D94/60*D67*D95/D59 -> 42.73795736 | E97: m3/sec
A98: Overtopping flow rate | B98: =B61 -> 56.98370916 | C98: =C61 -> 14.24596852 | D98: =D61 -> 85.47581093 | E98: m3/sec
A99: Wave flow paths required | B99: =B98/B97 -> 1.999991787 | C99: =C98/C97 -> 0.9999987876 | D99: =D98/D97 -> 1.999997571
A100: Wave flow paths /turbine | B100: =B59/B95 -> 4 | C100: =C59/C95 -> 4 | D100: =D59/D95 -> 4
A101: Gear Check | B101: =IF(ROUND(B99,1)>B100,"CHECK","OK") -> OK | C101: =IF(ROUND(C99,1)>C100,"CHECK","OK") -> OK | D101: OK
A103: WAVE POWER
A104: Head developed torque /wave flow path | B104: =((B32*B9*(Ballasting_Mid+B42)*B71)-'Graphical representation'!J25)*B95 *Gear_Mid -> 666921.6279 | C104: =((C32*C9*(Ballasting_Low+C42)*C71)-'Graphical representation'!J25)*C95 *Gear_Low -> 155547.6528 | D104: =((D32*D9*(Ballasting_High+D42)*D71)-'Graphical representation'!J25)*D95 *Gear_High -> 762929.4468 | E104: Nm
A105: Wave Power /wave flow path | B105: =B104*B94/9.664/1000000 -> 0.1318011677 | C105: =C104*C94/9.664/1000000 -> 0.01537014352 | D105: 0.226162238 | E105: MW
A106: Fluid losses | B106: 0.05 | C106: =B106 -> 0.05 | D106: =B106 -> 0.05
A107: Wave power uncorrected | B107: =B99*B105*(1-B106) -> 0.2504211903 | C107: =C99*C105*(1-C106) -> 0.01460161864 | D107: =D99*D105*(1-D106) -> 0.4297077304 | E107: MW
A108: Wave Power corrected for head loss between waves | B108: =Available_Power_Mid*(1-((B117/2)/B43)) -> 0.1989256264 | C108: =Available_Power_Low*(1-((C117/2)/C43)) -> 0.01150087527 | D108: =Available_Power_High*(1-((D117/2)/D43)) -> 0.3074893388 | E108: MW
A110: TIDAL POWER
A111: Tidal Power | B111: =B80 -> 0.2552341999 | C111: =C80 -> 0.03190427499 | D111: 0.8614154247 | E111: MW
A113: COMBINED TIDAL AND WAVE POWER
A114: Total Power | B114: =B111+B108 -> 0.4541598263 | C114: =C111+C108 -> 0.04340515026 | D114: =D111+D108 -> 1.168904764 | E114: MW
A116: DECK AREA
A117: Allowable head loss | B117: 0.45 | C117: 0.25 | D117: 0.7 | E117: m
A118: Wave period | B118: =B15 -> 8.437703311 | C118: =C15 -> 5.454514344 | D118: =D15 -> 9.779340564 | E118: sec
A119: Time to reach overtopping threshold | B119: =(B118/2)+(B43/B29)*(B118/2) -> 6.284224043 | C119: =(C118/2)+(C43/C29)*(C118/2) -> 4.474286427 | D119: =(D118/2)+(D43/D29)*(D118/2) -> 6.998528361 | E119: sec
A120: Storage capacity required | B120: =B119*B61 -> 358.0983951 | C120: =C119*C61 -> 63.74054357 | D120: =D119*D61 -> 598.204887 | E120: m3
A121: Deck storage area | B121: =(B120/B117)+ (B59*B62) -> 1115.774211 | C121: =(C120/C117)+ (C59*C62) -> 574.9621743 | D121: =(D120/D117)+ (D59*D62) -> 1174.57841 | E121: m^2
A122: Length pontoon required | B122: =B121/B59 -> 55.78871057 | C122: =C121/C59 -> 28.74810871 | D122: =D121/D59 -> 58.7289205 | E122: m
A123: Pontoon length available | B123: 60 | C123: =B123 -> 60 | D123: =B123 -> 60 | E123: m
A124: Pontoon length check | B124: =IF(B122>B123,"CHECK","OK") -> OK | C124: =IF(C122>C123,"CHECK","OK") -> OK | D124: OK
A126: WIND POWER IF DIRECTION IS ALLIGNED WITH TIDAL FLOW AND TURBINE | F126: 30 | G126: mph
A127: Wind velocity | B127: =F127 -> 13.41116667 | C127: =F127 -> 13.41116667 | D127: =F127 -> 13.41116667 | E127: m/s | F127: =1609.34*F126/60/60 -> 13.41116667 | G127: m/s
A128: Air density | B128: 1.225 | C128: =B128 -> 1.225 | D128: =B128 -> 1.225 | E128: kg/m3
A129: Wind power available | B129: =0.5*B128*B72*B127^3/1000000 -> 0.2068396565 | C129: =0.5*C128*C72*C127^3/1000000 -> 0.2068396565 | D129: =0.5*D128*D72*D127^3/1000000 -> 0.2068396565 | E129: MW
A130: Efficiency estimate | B130: 0.2 | C130: =B130 -> 0.2 | D130: =B130 -> 0.2
A131: Potential Power Available | B131: =B129*B130 -> 0.0413679313 | C131: =C129*C130 -> 0.0413679313 | D131: 0.0413679313 | E131: MW

Sheet Blade pos 1
A5: Net effect | M5: suction acting on the underside of the blades balanced
B6: +ve Hydrostatic head acting on driven blade = h1+h2
B7: Head acts along full length
B8: -ve head acts on pre-driven blade
B9: new blade pressure balanced
A16: h1
A18: h2
M19: water level

Sheet Blade pos 2
A5: Net effect
B6: +ve Hydrostatic head acting on driven blade = h1+h2
B7: Head acts along full length
B8: -ve head acts on new blade
B9: pre-driven blade pressure balanced
A16: h1
A18: h2
M19: water level

Sheet Graphical representation
B2: y
B4: =J12 -> 8 | E4: B
I5: blade angle | J5: =Theory!B65 -> 20 | K5: degrees
I6: core diameter | J6: =Theory!B63 -> 2 | K6: m
A7: blade | I7: h1 | J7: =Theory!B42 -> 0.75 | K7: m
A8: length | I8: Blade length + 1/2 core dia | J8: =Theory!B62/2 -> 8 | K8: m
I9: A | J9: =J7/SIN(RADIANS(J5)) -> 2.1928533 | K9: m
B10: =J9 -> 2.1928533 | C10: D | H10: A | I10: A | J10: 20 | K10: degrees
I11: B | J11: =DEGREES(ASIN(J7/J8)) -> 5.379378991 | K11: degrees
I12: B | J12: =J8 -> 8 | K12: m
I13: C | J13: =J7/SIN(RADIANS(J11+J5)) -> 1.74984255 | K13: m
B14: 1.75 | E14: C | I14: C | J14: =J11+J5 -> 25.37937899 | K14: degrees
I15: D | J15: 20 | K15: degrees
I16: D | J16: =J9 -> 2.1928533 | K16: m
D17: 0 | E17: =J11 -> 5.379378991 | G17: 20 | I17: Head A blade root | J17: =Theory!B32*Theory!B9*(J7-((J6/2)*SIN(RADIANS(J10)))) -> 4102.339454 | K17: Pa
D18: Blade | F18: Blade | I18: Head B blade root | J18: =Theory!B32*Theory!B9*(J7-((J6/2)*SIN(RADIANS(J11)))) -> 6598.757812 | K18: Pa
D19: Position | F19: Position | I19: Head C blade root | J19: =Theory!B32*Theory!B9*(J7-((J6/2)*SIN(RADIANS(J14)))) -> 3231.656886 | K19: Pa
D20: 2 | F20: 1 | I20: Head D blade root | J20: =J17 -> 4102.339454 | K20: Pa
I21: -ve torque A | J21: =J17/2*(J9-$J$6/2) -> 2446.744578 | K21: Nm/m | L21: 1 m width
I22: -ve torque B | J22: =J18/2*(J12-$J$6/2) -> 23095.65234 | K22: Nm/m
I23: -ve torque C | J23: =J19/2*(J13-$J$6/2) -> 1211.61692 | K23: Nm/m
I24: -ve torque D | J24: =J20/2*(J16-$J$6/2) -> 2446.744578 | K24: Nm/m
I25: Av negative torque | J25: =((((J21+J22)/2)*(J10-J11)) + (((J19+J20)/2)*(J11-0)))/J5 -> 10322.45127 | K25: Nm/m
